bitfinex/quotes_SOLUSD_20241113
["timestamp","ask_amount","ask_price","bid_price","bid_amount"]
[1731504932894,59.45056249,209.15,208.93,0.12549]
[1731504933098,20.0,209.12,208.92,12.1697]
[1731504933296,23.776884,209.11,208.92,12.1697]
[1731504933498,43.776884,209.2,208.95,0.1]
[1731504933703,33.49931865,209.22,208.96,0.1]
[1731504934090,1.912064,209.21,208.99,0.1]
[1731504934292,1.912064,209.21,208.98,0.1]
[1731504934595,4.7789,209.25,208.99,0.12549]
[1731504934897,9.72173465,209.25,209.02,0.1]
[1731504935291,4.7786,209.27,209.0,0.1]
[1731504935495,4.7786,209.27,209.04,0.1]
[1731504935693,4.7781,209.29,209.03,0.12549]
[1731504935894,35.67367849,209.26,209.03,0.12549]
[1731504936118,35.67367849,209.22,208.92,12.3697]
[1731504936314,4.94283465,209.21,208.96,0.1]
[1731504936506,4.94283465,209.21,209.0,0.22549]
[1731504936809,20.0,209.25,208.96,0.22549]
[1731504937114,23.776884,209.22,209.0,0.1]
[1731504937311,23.776884,209.22,208.95,0.1]
[1731504937312,4.94283465,209.25,209.03,0.1]
[1731504937515,4.7776,209.31,209.05,20.12549]
[1731504937687,4.7776,209.31,209.05,0.12549]
[1731504937688,40.61651314,209.3,209.05,0.12549]
[1731504937890,4.94283465,209.3,209.05,20.22549]
[1731504938193,4.94283465,209.3,209.07,0.12549]
[1731504938602,4.778,209.29,209.04,12.8056]
[1731504938895,35.67367849,209.2,209.04,12.8056]
[1731504939213,20.0,209.21,209.04,12.8056]
[1731504939517,23.776884,209.22,209.05,0.12549]
[1731504940010,4.7798,209.21,209.05,0.12549]
[1731504940406,23.776884,209.2,209.05,0.12549]
[1731504940913,23.776884,209.2,209.04,12.8056]
[1731504941612,23.776884,209.2,209.05,0.12549]
[1731504942604,28.556484,209.22,209.05,0.12549]
[1731504942803,23.776884,209.19,209.04,12.8056]
[1731504943114,23.776884,209.19,208.92,12.7125]
[1731504943300,23.776884,209.17,208.92,12.7125]
[1731504943711,23.776884,209.17,208.93,0.12549]
[1731504943905,59.45056249,209.17,208.92,12.7125]
[1731504944112,23.776884,209.1,208.92,12.7125]
[1731504944417,4.7826,209.09,208.93,0.12549]
[1731504944714,166.7818,209.13,208.93,0.12549]
[1731504945095,23.776884,209.12,208.92,12.7125]
[1731504945312,23.776884,209.12,208.93,0.12549]
[1731504945711,23.776884,209.12,208.92,12.7125]
[1731504946105,23.776884,209.12,208.93,0.12549]
[1731504946314,28.558884,209.12,208.93,23.902374]
[1731504947424,28.558884,209.12,208.93,0.12549]
[1731504947821,23.776884,209.1,208.92,12.7125]
[1731504948208,23.776884,209.11,208.92,12.7125]
[1731504948411,59.45056249,209.11,208.92,12.7125]
[1731504948611,23.776884,209.08,208.92,12.7125]
[1731504948918,23.776884,209.06,208.87,0.5216719]
[1731504949326,23.776884,209.04,208.87,0.5216719]
[1731504949825,4.784,209.03,208.88,0.12549]
[1731504950213,23.776884,209.02,208.87,0.5216719]
[1731504951304,23.776884,209.08,208.88,0.12549]
[1731504951603,35.67367849,209.11,208.88,0.12549]
[1731504952115,35.67367849,209.11,208.88,23.902374]
[1731504952614,4.94283465,209.13,208.89,20.1]
[1731504952814,35.67367849,209.13,208.9,23.776884]
[1731504953001,40.61651314,209.13,208.9,23.776884]
[1731504953204,35.67367849,209.11,208.87,0.5216719]
[1731504953607,4.94283465,209.11,208.87,0.5216719]
[1731504953809,23.776884,209.1,208.87,0.5216719]
[1731504954016,23.776884,209.1,208.88,0.12549]
[1731504954829,23.776884,209.1,208.88,23.902374]
[1731504955025,23.776884,209.04,208.87,0.4813126]
[1731504955235,28.71971865,209.04,208.87,0.4813126]
[1731504955719,23.776884,209.04,208.87,0.4813126]
[1731504956119,23.776884,209.06,208.87,0.4813126]
[1731504956329,23.776884,209.07,208.87,0.4813126]
[1731504956501,23.776884,209.07,208.88,0.12549]
[1731504957814,23.776884,209.09,208.88,0.12549]
[1731504958009,59.45056249,209.09,208.88,0.12549]
[1731504958202,23.776884,209.06,208.88,0.12549]
[1731504958524,4.94283465,209.14,208.88,23.902374]
[1731504958829,35.67367849,209.13,208.88,23.902374]
[1731504960007,28.71971865,209.12,208.88,23.902374]
[1731504960312,23.776884,209.1,208.88,23.902374]
[1731504960513,23.776884,209.1,208.88,0.12549]
[1731504961024,45.71174665,209.1,208.88,0.12549]
[1731504961235,45.71174665,209.1,208.87,0.4813126]
[1731504961236,23.776884,209.05,208.87,0.4813126]
[1731504961418,23.776884,209.03,208.87,0.4813126]
[1731504961626,23.776884,208.99,208.87,0.4813126]
[1731504961809,23.776884,208.97,208.87,0.4813126]
[1731504962506,162.0,208.98,208.87,0.4813126]
[1731504962921,12.8958,209.08,208.88,0.12549]
[1731504962922,162.0,209.06,208.88,0.12549]
[1731504963107,35.66434754,209.14,208.9,0.12549]
[1731504963308,162.0,209.17,208.9,24.002374]
[1731504963508,162.0,209.17,208.95,0.1]
[1731504963726,162.0,209.25,209.0,23.776884]
[1731504964027,1.74516355,209.29,209.06,23.776884]
[1731504964225,197.66434754,209.32,209.08,23.776884]
[1731504964531,35.66434754,209.3,209.05,43.776884]
[1731504964711,4.94283465,209.31,209.07,0.1]
[1731504964912,35.66434754,209.3,209.08,13.2628]
[1731504965225,4.94283465,209.31,209.09,23.776884]
[1731504965425,0.12549,209.35,209.1,20.0]
[1731504965618,0.12549,209.35,209.14,20.1]
[1731504965836,0.12549,209.35,209.15,23.776884]
[1731504966822,0.12549,209.35,209.08,13.2628]
[1731504967127,0.12549,209.35,209.13,23.776884]
[1731504967520,0.12549,209.35,209.11,0.1]
[1731504967521,35.78983754,209.35,209.11,23.776884]
[1731504967721,35.66434754,209.33,209.11,23.776884]
[1731504968036,35.66434754,209.29,209.08,13.2628]
[1731504968241,35.66434754,209.27,209.08,13.2628]
[1731504968417,23.776884,209.24,209.08,13.2628]
[1731504968932,35.66434754,209.21,209.08,13.2628]
[1731504969113,23.776884,209.18,209.01,13.095]
[1731504969435,185.776884,209.18,209.01,13.095]
[1731504969640,23.776884,209.16,209.01,13.095]
[1731504970312,35.66434754,209.09,208.92,12.6452]
[1731504970517,20.0,209.02,208.91,0.4813126]
[1731504970710,35.66434754,208.99,208.91,0.4813126]
[1731504970912,4.94283465,209.01,208.91,0.4813126]
[1731504971126,23.776884,209.05,208.91,0.4813126]
[1731504971517,162.0,209.06,208.91,0.4813126]
[1731504971831,23.776884,209.09,208.92,0.12549]
[1731504972032,23.776884,209.05,208.91,0.4813126]
[1731504972236,4.94283465,209.08,208.91,0.4813126]
[1731504972527,162.0,209.14,208.92,0.12549]
[1731504972735,35.66434754,209.18,208.92,0.12549]
[1731504973035,40.60718219,209.18,208.92,0.12549]
[1731504973215,40.60718219,209.18,208.94,0.12549]
[1731504973417,1.912561,209.2,208.97,20.1]
[1731504973729,197.66434754,209.24,208.98,23.902374]
[1731504973932,40.60718219,209.26,208.98,24.002374]
[1731504974112,166.94283465,209.26,209.01,20.0]
[1731504974313,202.60718219,209.26,209.02,23.776884]
[1731504974617,35.66434754,209.2,208.96,20.12549]
[1731504974817,35.66434754,209.2,208.96,23.902374]
[1731504974818,4.94283465,209.19,208.96,23.902374]
[1731504975027,35.66434754,209.18,208.96,23.902374]
[1731504975432,23.776884,209.17,208.96,23.902374]
[1731504975621,23.776884,209.15,208.96,0.12549]
[1731504975930,23.776884,209.13,208.91,0.4813126]
[1731504976116,23.776884,209.13,208.96,0.12549]
[1731504976324,166.94283465,209.15,208.91,0.4813126]
[1731504976628,162.0,209.15,208.96,0.12549]
[1731504976813,59.44123154,209.14,208.96,0.12549]
[1731504977016,226.38406619,209.14,208.96,0.12549]
[1731504977226,185.776884,209.14,208.96,0.12549]
[1731504977432,185.776884,209.14,208.91,0.4813126]
[1731504977433,23.776884,209.12,208.91,0.4813126]
[1731504977613,23.776884,209.11,208.91,0.4813126]
[1731504977925,162.0,209.13,208.96,0.12549]
[1731504978129,23.776884,209.12,208.91,0.4813126]
[1731504978437,185.776884,209.12,208.91,0.4813126]
[1731504978619,35.66434754,209.05,208.91,0.4813126]
[1731504978815,23.776884,209.04,208.91,0.4813126]
[1731504979220,23.776884,209.08,208.91,0.4813126]
[1731504979421,35.66434754,209.01,208.91,0.4813126]
[1731504979731,23.776884,208.97,208.91,0.4813126]
[1731504979932,20.0,208.96,208.91,0.4813126]
[1731504980231,20.0,208.94,208.91,0.4813126]
[1731504980525,0.1,208.99,208.91,0.4813126]
[1731504980526,35.66434754,209.01,208.91,0.4813126]
[1731504980729,43.776884,208.97,208.91,0.4813126]
[1731504981033,20.0,208.97,208.91,0.4813126]
[1731504981235,1.914134,209.01,208.91,0.4813126]
[1731504981407,20.0,209.03,208.91,0.4813126]
[1731504981608,4.94283465,209.06,208.91,0.4813126]
[1731504981609,20.0,209.01,208.91,0.4813126]
[1731504981826,5.52061243,209.01,208.91,0.4813126]
[1731504982038,5.52061243,209.05,208.91,0.4813126]
[1731504982828,35.66434754,209.03,208.91,0.4813126]
[1731504983014,5.52061243,209.02,208.91,0.4813126]
[1731504983214,35.66434754,208.97,208.91,0.4813126]
[1731504983430,35.66434754,208.99,208.91,0.4813126]
[1731504983620,35.66434754,208.97,208.91,0.4813126]
[1731504983937,23.776884,208.92,208.91,0.4813126]
[1731504984143,49.29749643,208.92,208.91,0.4813126]
[1731504984815,25.52061243,208.92,208.91,0.4813126]
[1731504985011,84.96184397,208.92,208.91,0.4813126]
[1731504985221,49.29749643,208.92,208.91,0.4813126]
[1731504986217,84.96184397,208.92,208.91,0.4813126]
[1731504986627,120.82619151,208.92,208.91,0.4813126]
[1731504986832,0.1,208.88,208.69,0.4895644]
[1731504987032,23.776884,208.81,208.69,0.4895644]
[1731504987237,23.776884,208.83,208.69,0.4895644]
[1731504987439,5.52061243,208.82,208.69,0.4895644]
[1731504987625,23.776884,208.81,208.69,0.4895644]
[1731504988140,35.66434754,208.8,208.69,0.4895644]
[1731504988326,23.776884,208.79,208.69,0.4895644]
[1731504988530,23.776884,208.76,208.69,0.4895644]
[1731504988837,20.0,208.75,208.69,0.4895644]
[1731504989632,20.0,208.77,208.69,0.4895644]
[1731504990733,23.776884,208.74,208.69,0.4895644]
[1731504990940,25.52061243,208.73,208.69,0.4895644]
[1731504991243,20.0,208.71,208.69,0.4895644]
[1731504991433,84.96184397,208.7,208.69,0.4895644]
[1731504992324,84.96184397,208.7,208.48,0.4895644]
[1731504992325,98.27354397,208.7,208.48,0.4895644]
[1731504992522,35.66434754,208.64,208.48,0.4895644]
[1731504992753,49.29749643,208.63,208.48,0.4895644]
[1731504993241,25.52061243,208.63,208.49,0.12549]
[1731504993431,20.0,208.66,208.48,0.4895644]
[1731504993617,20.0,208.66,208.49,0.12549]
[1731504993829,35.66434754,208.76,208.49,0.22549]
[1731504994124,5.52061243,208.74,208.49,0.12549]
[1731504994332,35.66434754,208.72,208.49,0.12549]
[1731504994517,5.52061243,208.71,208.49,23.902374]
[1731504995114,35.66434754,208.78,208.54,0.1]
[1731504995320,5.52061243,208.76,208.54,0.1]
[1731504995516,1.915883,208.82,208.6,0.12549]
[1731504995731,5.52061243,208.87,208.63,0.1]
[1731504996041,35.66434754,208.8,208.63,12.9649]
[1731504996339,5.52061243,208.79,208.63,12.9649]
[1731504996539,197.66434754,208.78,208.63,12.9649]
[1731504996842,5.52061243,208.77,208.63,12.9649]
[1731504997021,35.66434754,208.76,208.63,12.9649]
[1731504997325,35.66434754,208.72,208.56,12.6095]
[1731504997525,20.0,208.67,208.56,12.6095]
[1731504998039,20.0,208.63,208.48,12.8119644]
[1731504998348,20.0,208.63,208.49,0.12549]
[1731504998539,20.0,208.63,208.48,12.8119644]
[1731504998739,23.776884,208.6,208.48,12.8119644]
[1731504998939,20.0,208.59,208.48,12.8119644]
[1731504999124,5.52061243,208.62,208.48,12.8119644]
[1731504999326,20.0,208.62,208.49,0.12549]
[1731504999535,20.0,208.6,208.48,12.8119644]
[1731505000044,20.0,208.58,208.48,0.4895644]
[1731505001245,20.0,208.58,208.49,0.12549]
[1731505001431,23.776884,208.61,208.49,0.12549]
[1731505001640,20.0,208.6,208.49,0.12549]
[1731505002819,5.52061243,208.63,208.49,23.902374]
[1731505003025,41.18495997,208.72,208.49,23.902374]
[1731505003222,41.18495997,208.72,208.49,24.002374]
[1731505003525,19.167347,208.71,208.49,23.902374]
[1731505003729,24.68795943,208.71,208.49,23.902374]
[1731505004047,24.68795943,208.71,208.51,24.002374]
[1731505004048,5.52061243,208.71,208.51,24.002374]
[1731505004226,162.0,208.74,208.51,24.002374]
[1731505004424,5.52061243,208.76,208.55,23.876884]
[1731505004747,5.52061243,208.81,208.57,43.876884]
[1731505004935,5.52061243,208.81,208.57,43.976884]
[1731505005143,162.0,208.91,208.66,0.1]
[1731505005342,162.0,208.91,208.68,23.776884]
[1731505005343,5.52061243,208.88,208.68,23.776884]
[1731505005828,35.66434754,208.85,208.67,12.0841]
[1731505006033,35.66434754,208.83,208.67,12.0841]
[1731505006332,5.52061243,208.82,208.68,23.776884]
[1731505006540,162.0,208.87,208.68,23.776884]
[1731505006740,5.52061243,208.86,208.68,23.776884]
[1731505007745,20.0,208.85,208.68,23.776884]
[1731505007954,162.0,208.87,208.68,23.876884]
[1731505008342,5.52061243,208.91,208.69,20.0]
[1731505008651,5.52061243,208.91,208.7,23.776884]
[1731505009029,35.66434754,208.88,208.68,23.776884]
[1731505009348,5.52061243,208.87,208.68,23.776884]
[1731505010149,20.0,208.86,208.68,23.776884]
[1731505010330,5.52061243,208.85,208.68,23.776884]
[1731505010531,20.0,208.84,208.68,23.776884]
[1731505010732,25.52061243,208.84,208.67,12.0841]
[1731505011333,23.776884,208.81,208.67,12.0841]
[1731505011531,20.0,208.78,208.57,13.282]
[1731505011830,20.0,208.76,208.58,0.12549]
[1731505012033,20.0,208.76,208.58,0.22549]
[1731505012233,20.0,208.76,208.58,0.12549]
[1731505012426,20.0,208.81,208.59,0.1]
[1731505012629,20.0,208.87,208.63,0.22549]
[1731505012853,162.0,208.88,208.57,13.282]
[1731505012854,162.0,208.88,208.65,0.1]
[1731505013156,166.7875,208.88,208.65,0.1]
[1731505013535,4.786,208.94,208.74,0.12549]
[1731505013737,10.30661243,208.94,208.74,0.12549]
[1731505013945,35.66434754,208.92,208.74,0.12549]
[1731505014141,35.66434754,208.88,208.71,12.7875]
[1731505014453,4.886,208.94,208.71,12.7875]
[1731505014454,35.66434754,208.84,208.71,12.7875]
[1731505014755,35.66434754,208.84,208.64,25.4923]
[1731505014756,23.776884,208.82,208.64,38.5887]
[1731505014959,5.52061243,208.82,208.64,38.5887]
[1731505015256,5.52061243,208.82,208.65,0.12549]
[1731505015456,20.0,208.81,208.65,0.12549]
[1731505015639,5.52061243,208.81,208.64,38.5887]
[1731505015838,20.0,208.79,208.64,38.5887]
[1731505016164,20.0,208.83,208.65,0.12549]
[1731505016337,162.0,208.84,208.65,0.12549]
[1731505016659,162.0,208.84,208.65,20.12549]
[1731505016832,162.0,208.84,208.67,0.12549]
[1731505017039,5.52061243,208.89,208.71,0.12549]
[1731505017040,10.30791243,208.89,208.71,0.12549]
[1731505017756,5.52061243,208.89,208.71,0.12549]
[1731505017959,5.52061243,208.89,208.72,0.1]
[1731505018136,162.83147475,208.97,208.73,20.22549]
[1731505018342,35.66434754,208.94,208.74,23.776884]
[1731505018647,5.52061243,208.93,208.74,23.776884]
[1731505018851,35.66434754,208.91,208.65,0.1]
[1731505019039,5.52061243,208.9,208.65,0.1]
[1731505019238,35.66434754,208.87,208.64,38.5887]
[1731505019556,35.66434754,208.83,208.64,38.5887]
[1731505019742,35.66434754,208.77,208.57,12.3713]
[1731505019934,35.66434754,208.73,208.57,12.3713]
[1731505020136,25.52061243,208.72,208.57,12.3713]
[1731505020350,187.52061243,208.72,208.57,12.3713]
[1731505021055,20.0,208.72,208.57,12.3713]
[1731505021260,20.0,208.79,208.59,0.12549]
[1731505021466,162.0,208.8,208.59,0.12549]
[1731505021467,24.7893,208.8,208.59,0.12549]
[1731505021754,5.52061243,208.79,208.57,12.3713]
[1731505021935,5.52061243,208.79,208.6,0.12549]
[1731505022353,23.776884,208.76,208.6,0.12549]
[1731505022538,35.66434754,208.71,208.5,12.7908]
[1731505022744,5.52061243,208.7,208.5,12.7908]
[1731505022954,5.52061243,208.7,208.52,0.12549]
[1731505023333,4.7917,208.69,208.52,0.12549]
[1731505023651,10.31231243,208.69,208.5,12.7908]
[1731505023855,23.776884,208.66,208.5,12.7908]
[1731505024051,41.18495997,208.65,208.5,12.7908]
[1731505024249,5.52061243,208.65,208.52,0.12549]
[1731505024764,5.52061243,208.65,208.5,12.7908]
[1731505024943,4.7929,208.64,208.52,0.12549]
[1731505025141,4.7929,208.64,208.5,12.7908]
[1731505025341,192.31351243,208.64,208.47,25.4923]
[1731505025652,5.52061243,208.63,208.52,0.12549]
[1731505025885,5.52061243,208.63,208.47,25.4923]
[1731505026032,162.0,208.64,208.52,0.12549]
[1731505026564,162.0,208.71,208.52,0.12549]
[1731505026740,162.0,208.8,208.58,0.12549]
[1731505026943,35.66434754,208.85,208.62,0.1]
[1731505027142,162.0,208.87,208.65,20.0]
[1731505027386,4.7867,208.91,208.69,13.111]
[1731505027559,4.7858,208.95,208.73,20.0]
[1731505027737,45.97075997,208.95,208.74,23.776884]
[1731505027942,45.97075997,208.95,208.71,20.0]
[1731505027943,173.09485273,208.94,208.71,0.1]
[1731505028242,167.52061243,209.02,208.77,0.1]
[1731505028441,35.66434754,209.05,208.7,43.776884]
[1731505028442,162.0,209.04,208.79,0.1]
[1731505028639,35.66434754,209.03,208.75,0.1]
[1731505028956,11.09485273,209.03,208.8,0.1]
[1731505029162,5.52061243,209.03,208.8,0.1]
[1731505029358,5.52061243,209.03,208.85,0.1]
[1731505029666,207.96815997,209.07,208.82,0.1]
[1731505029864,207.96815997,209.07,208.7,43.776884]
[1731505029865,227.10435097,209.07,208.8,0.1]
[1731505030163,35.66434754,209.05,208.8,0.1]
[1731505030367,5.52061243,209.04,208.8,0.1]
[1731505030948,5.52061243,209.04,208.81,0.1]
[1731505031151,5.52061243,209.04,208.82,0.1]
[1731505031452,3.24,209.09,208.89,0.1]
[1731505031649,3.24,209.09,208.89,23.776884]
[1731505031951,5.52061243,209.08,208.89,23.776884]
[1731505032159,5.52061243,209.08,208.91,23.876884]
[1731505032348,0.83091289,209.14,208.93,23.776884]
[1731505032542,6.35152532,209.14,208.93,23.776884]
[1731505032839,6.35152532,209.14,208.95,0.1]
[1731505033041,0.83091289,209.14,208.98,20.1]
[1731505033247,0.83091289,209.14,208.99,23.776884]
[1731505033463,12.70996291,209.22,209.02,20.1]
[1731505033673,3.24,209.2,209.03,23.876884]
[1731505033840,3.24,209.2,209.04,12.4306]
[1731505034048,3.24,209.2,209.08,0.1]
[1731505034355,3.24,209.2,209.07,0.1]
[1731505034657,3.24,209.2,209.08,0.1]
[1731505035062,3.24,209.2,209.05,43.776884]
[1731505035248,3.24,209.2,209.06,0.1]
[1731505035956,0.4953416,209.23,209.05,43.776884]
[1731505036172,0.4953416,209.23,209.06,0.1]
[1731505036545,0.4953416,209.23,209.09,0.1]
[1731505036751,0.4953416,209.23,209.08,0.1]
[1731505037249,0.4953416,209.23,209.05,43.976884]
[1731505037460,0.4953416,209.23,209.08,0.1]
[1731505037850,0.4953416,209.23,209.05,43.776884]
[1731505038043,0.4953416,209.23,209.07,0.1]
[1731505038371,0.4953416,209.23,209.05,43.776884]
[1731505038568,0.4953416,209.23,209.04,12.4306]
[1731505038777,23.776884,209.19,208.96,12.4806]
[1731505039066,20.0,209.16,208.96,12.4806]
[1731505039381,23.776884,209.13,208.96,12.4806]
[1731505039557,23.776884,209.11,208.96,12.4806]
[1731505039870,20.0,209.19,208.98,0.1]
[1731505040242,0.4953416,209.23,209.0,0.1]
[1731505040243,20.4953416,209.23,209.0,0.1]
[1731505040465,20.4953416,209.23,208.99,0.12549]
[1731505040653,20.0,209.18,208.96,12.4806]
[1731505040854,35.66434754,209.19,208.96,12.4806]
[1731505041046,20.0,209.13,208.92,25.4923]
[1731505041251,20.0,209.09,208.87,12.1191]
[1731505041464,5.52061243,209.08,208.87,12.1191]
[1731505041772,162.0,209.18,208.95,0.1]
[1731505041947,20.0,209.19,208.95,0.1]
[1731505042148,20.0,209.19,208.9,0.12549]
[1731505042149,20.0,209.17,208.9,0.22549]
[1731505042356,20.0,209.13,208.88,0.1]
[1731505042561,23.776884,209.1,208.87,12.1191]
[1731505042869,23.776884,209.08,208.87,12.1191]
[1731505043062,23.776884,209.06,208.87,12.1191]
[1731505043272,23.776884,209.04,208.87,12.1191]
[1731505043459,23.776884,209.04,208.88,0.12549]
[1731505043656,162.0,209.06,208.88,0.12549]
[1731505043866,162.0,209.15,208.9,0.1]
[1731505044055,35.66434754,209.19,208.88,0.2]
[1731505044257,32.9681,209.2,208.88,0.2]
[1731505044258,35.66434754,209.17,208.88,0.2]
[1731505044480,35.66434754,209.11,208.87,12.1191]
[1731505044972,162.0,209.14,208.9,0.1]
[1731505045178,162.0,209.15,208.9,0.2]
[1731505045477,166.7804,209.19,208.95,0.12549]
[1731505045657,202.44474754,209.19,208.93,0.12549]
[1731505045858,35.66434754,209.15,208.88,20.0]
[1731505046080,162.0,209.14,208.92,0.12549]
[1731505046257,162.0,209.14,208.96,0.12549]
[1731505046461,162.0,209.18,208.96,0.12549]
[1731505046667,162.0,209.18,208.98,0.12549]
[1731505046867,197.66434754,209.18,208.98,0.12549]
[1731505047073,35.66434754,209.14,208.85,0.1]
[1731505047393,167.5742403,209.17,182.86,0.53733766]
[1731505047394,35.66434754,209.08,208.8,0.1]
[1731505047680,35.66434754,209.06,208.82,0.1]
[1731505047976,23.776884,209.07,208.83,0.1]
[1731505048152,23.776884,209.07,208.83,0.2]
[1731505048357,55.66434754,209.08,208.81,25.4923]
[1731505048558,23.776884,209.07,208.83,0.1]
[1731505048758,23.776884,209.05,208.81,25.4923]
[1731505048980,23.776884,209.03,208.81,25.4923]
[1731505049178,197.66434754,209.02,208.81,25.4923]
[1731505049362,40.44844754,209.03,208.68,12.1881]
[1731505049569,23.776884,208.98,208.71,0.1]
[1731505049778,23.776884,208.98,208.69,19.139629]
[1731505049779,35.66434754,208.95,208.69,19.139629]
[1731505050083,23.776884,208.96,208.68,12.0881]
[1731505050283,20.0,208.91,208.68,12.0881]
[1731505050473,20.0,208.89,208.68,12.0881]
[1731505050678,162.0,208.92,208.69,0.1]
[1731505050857,162.0,208.96,208.71,0.1]
[1731505051182,35.66434754,208.99,208.7,0.1]
[1731505051384,6.03466822,208.98,208.72,0.1]
[1731505051677,6.03466822,208.98,208.77,0.1]
[1731505051866,6.03466822,209.05,208.8,25.4923]
[1731505052061,12.20604185,209.05,208.81,23.776884]
[1731505052265,35.66434754,209.01,208.82,12.9478]
[1731505052465,35.66434754,209.01,208.69,20.0]
[1731505052466,35.66434754,208.95,208.7,38.4401]
[1731505052673,162.0,208.94,208.72,0.1]
[1731505052867,162.0,208.99,208.73,0.12549]
[1731505053078,168.03466822,208.99,208.73,0.22549]
[1731505053480,197.66434754,209.04,208.76,0.12549]
[1731505053672,23.776884,209.02,208.78,0.1]
[1731505053874,23.776884,209.02,208.76,0.22549]
[1731505054182,12.20604185,209.01,208.76,0.1]
[1731505054387,162.0,209.03,208.78,0.22549]
[1731505054569,6.03466822,209.01,208.78,0.12549]
[1731505054759,221.44123154,209.0,208.73,0.1]
[1731505054957,168.03466822,209.0,208.76,23.776884]
[1731505055278,6.03466822,208.99,208.77,0.12549]
[1731505055464,46.48281576,209.04,208.81,0.12549]
[1731505055670,6.03466822,209.01,208.81,0.12549]
[1731505056282,6.17137363,209.04,208.83,0.12549]
[1731505056484,168.03466822,209.09,208.87,0.12549]
[1731505056785,13.0741,209.12,208.89,0.12549]
[1731505056963,162.0,209.13,208.89,0.12549]
[1731505056964,166.7818,209.13,208.89,0.12549]
[1731505057165,6.03466822,209.11,208.89,0.12549]
[1731505057367,6.03466822,209.11,208.91,0.12549]
[1731505057973,35.66434754,209.1,208.91,0.12549]
[1731505058285,6.03466822,209.09,208.91,0.12549]
[1731505058467,162.0,209.15,208.93,0.12549]
[1731505058671,6.03466822,209.11,208.93,0.12549]
[1731505059162,12.20604185,209.11,208.93,0.12549]
[1731505059372,4.7826,209.09,208.88,23.776884]
[1731505059569,23.776884,209.07,208.88,23.776884]
[1731505059770,6.03466822,209.06,208.88,0.12549]
[1731505059995,23.776884,209.05,208.88,0.12549]
[1731505060188,6.03466822,209.04,208.88,0.12549]
[1731505060375,6.03466822,209.04,208.87,25.4923]
[1731505060688,162.0,209.16,208.9,0.1]
[1731505060895,6.03466822,209.17,208.9,0.1]
[1731505061088,0.83050283,209.19,208.96,0.12549]
[1731505061388,0.83050283,209.19,208.96,0.22549]
[1731505061589,0.83050283,209.19,208.98,0.1]
[1731505061783,6.03466822,209.2,208.96,43.902374]
[1731505062093,6.03466822,209.2,209.03,0.12549]
[1731505063796,0.4953416,209.23,209.05,0.12549]
[1731505064097,6.03466822,209.22,209.05,0.12549]
[1731505066177,23.776884,209.21,209.05,0.12549]
[1731505066502,0.4953416,209.23,209.05,0.12549]
[1731505067078,0.4953416,209.23,209.07,43.902374]
[1731505069890,0.4953416,209.23,209.07,20.22549]
[1731505070097,0.4953416,209.23,209.09,0.1]
[1731505070304,0.4953416,209.23,209.07,20.22549]
[1731505070498,0.4953416,209.23,209.07,20.0]
[1731505070690,0.4953416,209.23,209.08,0.1]
[1731505070890,0.4953416,209.23,209.08,0.22549]
[1731505071393,0.4953416,209.23,209.08,0.12549]
[1731505071596,0.4953416,209.23,209.1,0.1]
[1731505072090,0.4953416,209.23,209.1,23.876884]
[1731505072295,0.12549,209.35,209.15,20.12549]
[1731505072487,0.12549,209.35,209.21,0.1]
[1731505072678,0.12549,209.35,209.23,0.1]
[1731505072879,0.12549,209.35,209.25,23.776884]
[1731505073287,0.12549,209.35,209.28,0.12549]
[1731505073491,0.4706239,209.44,209.28,0.12549]
[1731505073688,0.4706239,209.44,209.29,23.776884]
[1731505073893,0.4706239,209.44,209.3,0.12549]